lending/lending_fUSD_20241212
["ID","MTS","AMOUNT","RATE_DAILY","PERIOD"]
[345106111,1734021045460,-500.0,0.00024299,2]
[345106112,1734021045469,-500.0,0.00024299,2]
[345106113,1734021045479,-500.0,0.00024299,2]
[345106114,1734021045488,-521.16889551,0.00024299,2]
[345106115,1734021045500,-314.01419201,0.00024299,2]
[345106116,1734021045510,-500.81791249,0.00024299,2]
[345106117,1734021045519,-500.0,0.00024299,2]
[345106118,1734021045529,-500.0,0.00024299,2]
[345106119,1734021045538,-500.0,0.00024299,2]
[345106120,1734021045547,-504.521578,0.00024299,2]
[345106121,1734021045556,-500.0,0.00024299,2]
[345106122,1734021045565,-500.0,0.00024299,2]
[345106123,1734021045575,-332.71677575,0.00024299,2]
[345106124,1734021045584,-500.0,0.00024299,2]
[345106125,1734021045594,-3768.52734426,0.00024299,2]
[345106126,1734021045603,-500.0,0.00024299,2]
[345106127,1734021045613,-617.90425786,0.00024299,2]
[345106128,1734021045623,-507.18484031,0.00024299,2]
[345106129,1734021045632,-500.0,0.00024299,2]
[345106130,1734021045642,-500.0,0.00024299,2]
[345106131,1734021045653,-415.5385111,0.00024299,2]
[345106132,1734021045663,-500.0,0.00024299,2]
[345106133,1734021045673,-506.8871872,0.00024299,2]
[345106134,1734021045682,-500.0,0.00024299,2]
[345106135,1734021045691,-500.0,0.00024299,2]
[345106136,1734021045701,-500.0,0.00024299,2]
[345106137,1734021045711,-524.27292862,0.00024299,2]
[345106138,1734021045721,-500.0,0.00024299,2]
[345106139,1734021045730,-500.0,0.00024299,2]
[345106140,1734021045739,-500.0,0.00024299,2]
[345106141,1734021045748,-500.0,0.00024299,2]
[345106142,1734021045758,-741.15,0.00024299,2]
[345106143,1734021045767,-500.0,0.00024299,2]
[345106144,1734021045777,-500.0,0.00024299,2]
[345106145,1734021045787,-826.77,0.00024299,2]
[345106146,1734021045796,-500.0,0.00024299,2]
[345106147,1734021045806,-702.94,0.00024299,2]
[345106148,1734021045816,-245.2250799,0.00024299,2]
[345106149,1734021045826,-500.0,0.00024299,2]
[345106150,1734021045835,-500.0,0.000243,2]
[345106151,1734021045845,-500.0,0.000243,2]
[345106152,1734021045854,-500.0,0.000243,2]
[345106153,1734021045863,-531.0242345,0.000243,2]
[345106156,1734021045873,-500.0,0.000243,2]
[345106157,1734021045883,-500.0,0.000243,2]
[345106158,1734021045892,-500.0,0.000243,2]
[345106159,1734021045902,-500.0,0.000243,2]
[345106160,1734021045911,-748.01001531,0.000243,2]
[345106161,1734021045921,-935.4007903,0.000243,2]
[345106162,1734021045931,-500.0,0.000243,2]
[345106164,1734021045941,-500.0,0.000243,2]
[345106166,1734021045951,-500.0,0.000243,2]
[345106167,1734021045961,-500.0,0.000243,2]
[345106169,1734021045970,-500.0,0.000243,2]
[345106170,1734021045979,-500.0,0.000243,2]
[345106171,1734021045989,-500.0,0.000243,2]
[345106172,1734021045999,-500.0,0.000243,2]
[345106173,1734021046008,-500.0,0.000243,2]
[345106174,1734021046018,-500.0,0.0002438,2]
[345106176,1734021046028,-500.0,0.0002438,2]
[345106178,1734021046037,-500.0,0.0002438,2]
[345106179,1734021046047,-500.0,0.0002438,2]
[345106180,1734021046056,-500.0,0.0002438,2]
[345106181,1734021046066,-500.0,0.0002438,2]
[345106182,1734021046076,-500.92755671,0.0002438,2]
[345106183,1734021046085,-503.15805289,0.0002438,2]
[345106184,1734021046095,-500.47228243,0.0002438,2]
[345106185,1734021046105,-500.0,0.0002438,2]
[345106186,1734021046115,-237.66451628,0.0002438,2]
[345106187,1734021046124,-500.0,0.0002438,2]
[345106188,1734021046134,-750.0,0.0002438,2]
[345106189,1734021046143,-500.0,0.0002438,2]
[345106190,1734021046155,-500.0,0.0002438,2]
[345106191,1734021046170,-500.31143377,0.0002438,2]
[345106192,1734021046180,-500.0,0.0002438,2]
[345106193,1734021046190,-502.05306801,0.0002438,2]
[345106194,1734021046200,-500.0,0.0002438,2]
[345106195,1734021046210,-646.36,0.0002438,2]
[345106196,1734021046221,-625.17,0.0002438,2]
[345106197,1734021046231,-1306.31,0.0002438,2]
[345106198,1734021046241,-500.0,0.0002438,2]
[345106199,1734021046251,-500.0,0.0002438,2]
[345106200,1734021046260,-1247.24,0.0002438,2]
[345106201,1734021046270,-500.0,0.0002438,2]
[345106202,1734021046280,-649.16,0.0002438,2]
[345106203,1734021046290,-796.67,0.0002438,2]
[345106204,1734021046299,-500.0,0.0002438,2]
[345106205,1734021046310,-311.79266791,0.0002438,2]
[345106206,1734021046320,-500.0,0.0002438,2]
[345106207,1734021046330,-200.52430466,0.0002438,2]
[345106208,1734021046340,-500.0,0.0002438,2]
[345106209,1734021046352,-1000.0,0.0002438,2]
[345106210,1734021046362,-1236.73,0.0002438,2]
[345106211,1734021046371,-500.0,0.0002438,2]
[345106212,1734021046381,-1078.44,0.0002438,2]
[345106213,1734021046391,-500.0,0.0002438,2]
[345106214,1734021046407,-502.33332313,0.0002438,2]
[345106215,1734021046418,-500.0,0.0002438,2]
[345106216,1734021046429,-505.00054918,0.0002438,2]
[345106217,1734021046438,-500.0,0.0002438,2]
[345106218,1734021046448,-500.0,0.0002438,2]
[345106219,1734021046458,-600.0,0.0002438,2]
[345106220,1734021046468,-246.16,0.0002438,2]
[345106221,1734021046478,-500.0,0.0002438,2]
[345106222,1734021046488,-500.0,0.0002438,2]
[345106223,1734021046499,-375.16582128,0.0002438,2]
[345106224,1734021046508,-987.01,0.00024383,2]
[345106225,1734021046518,-500.0,0.00024383,2]
[345106226,1734021046527,-500.0,0.00024383,2]
[345106227,1734021046536,-1075.73,0.00024383,2]
[345106228,1734021046545,-5000.0,0.00024385,2]
[345106229,1734021046555,-4937.75,0.00024397,2]
[345106230,1734021046565,-3000.0,0.000244,2]
[345106231,1734021046574,-338.21523518,0.0002442,2]
[345106232,1734021046584,-4260.36,0.00024431,2]
[345106233,1734021046594,-16810.78925026,0.0002445,2]
[345106234,1734021046603,-2500.0,0.00024455,2]
[345106235,1734021046614,-1963.05202227,0.00024458,7]
[345106236,1734021046623,-428.09146526,0.00024463,2]
[345106237,1734021046633,-1430.49,0.00024464,2]
[345106238,1734021046643,-2000.0,0.000245,2]
[345106239,1734021046655,-1461454.50839302,0.000245,4]
[345106240,1734021046665,-3999.2590973,0.000245,2]
[345106241,1734021046675,-231.313639,0.000245,7]
[345106242,1734021046685,-332.284857,0.000245,7]
[345106243,1734021046695,-151.0,0.000245,7]
[345106244,1734021046706,-332.284857,0.000245,7]
[345106245,1734021046716,-538.772821,0.000245,7]
[345106246,1734021046727,-538.772821,0.000245,7]
[345106247,1734021046736,-211.183017,0.000245,7]
[345106248,1734021046746,-213.601405,0.000245,7]
[345106249,1734021046756,-213.601405,0.000245,7]
[345106250,1734021046766,-211.183017,0.000245,7]
[345106251,1734021046776,-151.0,0.000245,7]
[345106252,1734021046785,-5000.0,0.00024504,2]
[345106253,1734021046795,-2500.0,0.00024564,2]
[345106254,1734021046804,-500.0,0.00024573,2]
[345106255,1734021046814,-481.55579254,0.00024573,2]
[345106256,1734021046824,-503.31511338,0.00024573,2]
[345106257,1734021046833,-508.90497735,0.00024573,2]
[345106258,1734021046843,-500.0,0.00024573,2]
[345106259,1734021046851,-500.0,0.00024573,2]
[345106260,1734021046861,-500.0,0.00024573,2]
[345106261,1734021046871,-500.0,0.00024573,2]
[345106262,1734021046888,-500.0,0.00024573,2]
[345106263,1734021046903,-500.0,0.00024573,2]
[345106264,1734021046912,-500.0,0.00024573,2]
[345106265,1734021046922,-500.0,0.00024573,2]
[345106266,1734021046931,-500.0,0.00024573,2]
[345106267,1734021046941,-500.0,0.00024573,2]
[345106268,1734021046951,-500.0,0.00024573,2]
[345106269,1734021046962,-500.0,0.00024573,2]
[345106270,1734021046972,-500.0,0.00024573,2]
[345106271,1734021046982,-500.0,0.00024573,2]
[345106272,1734021046993,-500.0,0.00024573,2]
[345106273,1734021047003,-500.0,0.00024573,2]
[345106274,1734021047012,-500.0,0.00024573,2]
[345106275,1734021047022,-500.0,0.00024573,2]
[345106276,1734021047032,-268.25849615,0.00024573,2]
[345106277,1734021047042,-398.74029467,0.00024573,2]
[345106278,1734021047053,-276.17823132,0.00024573,2]
[345106279,1734021047062,-500.0,0.00024573,2]
[345106280,1734021047072,-500.0,0.00024573,2]
[345106281,1734021047082,-500.0,0.00024573,2]
[345106282,1734021047093,-500.0,0.00024573,2]
[345106283,1734021047103,-500.0,0.00024573,2]
[345106284,1734021047113,-500.0,0.00024573,2]
[345106285,1734021047124,-500.0,0.00024573,2]
[345106286,1734021047134,-500.0,0.00024573,2]
[345106287,1734021047144,-500.0,0.00024573,2]
[345106288,1734021047156,-500.0,0.00024573,2]
[345106289,1734021047166,-741.15,0.00024573,2]
[345106290,1734021047176,-500.0,0.00024573,2]
[345106291,1734021047185,-500.0,0.00024573,2]
[345106292,1734021047195,-826.77,0.00024573,2]
[345106293,1734021047205,-500.0,0.00024573,2]
[345106294,1734021047215,-702.94,0.00024573,2]
[345106295,1734021047225,-500.0,0.00024573,2]
[345106298,1734021047234,-150.0,0.00024615,120]
[345106299,1734021047244,-4498.13,0.00024623,2]
[345106300,1734021047253,-500.0,0.00024624,2]
[345106301,1734021047263,-500.0,0.00024624,2]
[345106302,1734021047273,-500.0,0.00024624,2]
[345106303,1734021047283,-500.0,0.00024624,2]
[345106304,1734021047294,-500.0,0.00024624,2]
[345106305,1734021047303,-509.6,0.00024624,2]
[345106306,1734021047313,-500.0,0.00024624,2]
[345106307,1734021047323,-1832.99,0.00024624,2]
[345106308,1734021047333,-500.0,0.00024624,2]
[345106309,1734021047343,-500.0,0.00024624,2]
[345106310,1734021047356,-382.4128328,0.00024624,2]
[345106311,1734021047365,-500.0,0.00024624,2]
[345106312,1734021047374,-500.0,0.00024624,2]
[345106313,1734021047384,-500.0,0.00024624,2]
[345106314,1734021047394,-500.0,0.00024624,2]
[345106315,1734021047405,-502.22018174,0.00024624,2]
[345106316,1734021047415,-500.0,0.00024624,2]
[345106317,1734021047424,-1243.07,0.00024624,2]
[345106318,1734021047436,-2766.6,0.00024624,2]
[345106319,1734021047445,-500.0,0.00024624,2]
[345106320,1734021047455,-1213.55,0.00024624,2]
[345106321,1734021047465,-1235.3,0.00024624,2]
[345106322,1734021047474,-500.0,0.00024624,2]
[345106323,1734021047484,-500.0,0.00024624,2]
[345106324,1734021047494,-500.0,0.00024624,2]
[345106325,1734021047503,-500.0,0.00024624,2]
[345106326,1734021047514,-500.0,0.00024624,2]
[345106327,1734021047523,-80486.98811252,0.00024625,2]
[345106328,1734021047533,-163.0,0.0002463,120]
[345106329,1734021047542,-150.5,0.0002463,120]
[345106330,1734021047552,-372.0,0.0002463,120]
[345106331,1734021047562,-253.93,0.0002463,120]
[345106332,1734021047571,-150.5,0.0002463,120]
[345106333,1734021047581,-417.0,0.0002463,120]
[345106334,1734021047590,-560.0,0.0002463,30]
[345106335,1734021047599,-560.0,0.0002463,30]
[345106336,1734021047608,-417.0,0.0002463,120]
[345106337,1734021047617,-163.0,0.0002464,120]
[345106338,1734021047627,-372.0,0.0002464,120]
[345106339,1734021047636,-150.5,0.0002464,120]
[345106340,1734021047645,-150.5,0.0002464,120]
[345106341,1734021047656,-247.66,0.0002464,30]
[345106342,1734021047665,-150.5,0.0002464,120]
[345106343,1734021047675,-417.0,0.0002464,120]
[345106344,1734021047685,-560.0,0.0002464,30]
[345106345,1734021047866,-212.34,0.0002464,120]
[345106346,1734021047878,-560.0,0.0002464,30]
[345106347,1734021047887,-417.0,0.0002464,120]
[345106348,1734021047897,-560.0,0.0002464,30]
[345106349,1734021047908,-417.0,0.0002464,120]
[345106350,1734021047918,-569.05,0.0002464,30]
[345106351,1734021047928,-424.4,0.0002464,120]
[345106352,1734021047937,-25000.0,0.00024645,2]
[345106353,1734021047947,-500.0,0.00024649,2]
[345106354,1734021047956,-500.0,0.00024649,2]
[345106355,1734021047966,-500.0,0.00024649,2]
[345106356,1734021047980,-500.0,0.00024649,2]
[345106357,1734021047989,-500.0,0.00024649,2]
[345106358,1734021047999,-500.0,0.00024649,2]
[345106359,1734021048007,-500.0,0.00024649,2]
[345106360,1734021048017,-500.0,0.00024649,2]
[345106361,1734021048028,-500.0,0.00024649,2]
[345106362,1734021048037,-485.32242097,0.00024649,2]
[345106363,1734021048047,-500.0,0.00024649,2]
[345106364,1734021048057,-556.9,0.00024649,2]
[345106365,1734021048067,-974.95,0.00024649,2]
[345106366,1734021048078,-618.23,0.00024649,2]
[345106367,1734021048087,-502.64592839,0.00024649,2]
[345106368,1734021048097,-500.0,0.00024649,2]
[345106369,1734021048107,-500.0,0.00024649,2]
[345106370,1734021048116,-500.0,0.00024649,2]
[345106371,1734021048126,-448.63053418,0.00024649,2]
[345106372,1734021048135,-504.43125615,0.00024649,2]
[345106373,1734021048145,-1720.1,0.00024649,2]
[345106374,1734021048156,-395.36538706,0.00024649,2]
[345106375,1734021048166,-504.29664359,0.00024649,2]
[345106376,1734021048176,-501.5544955,0.00024649,2]
[345106377,1734021048185,-500.0,0.00024649,2]
[345106378,1734021048195,-501.03475982,0.00024649,2]
[345106379,1734021048206,-500.0,0.00024649,2]
[345106380,1734021048216,-219.71571473,0.00024649,2]
[345106381,1734021048227,-205.83654444,0.00024649,2]
[345106382,1734021048238,-500.0,0.00024649,2]
[345106383,1734021048248,-399.8815992,0.00024649,2]
[345106384,1734021048259,-500.0,0.00024649,2]
[345106385,1734021048270,-446.06922639,0.00024649,2]
[345106386,1734021048280,-500.0,0.00024649,2]
[345106387,1734021048291,-500.8112839,0.00024649,2]
[345106388,1734021048301,-500.0,0.00024649,2]
[345106389,1734021048311,-500.0,0.00024649,2]
[345106390,1734021048321,-500.0,0.00024649,2]
[345106391,1734021048331,-500.0,0.00024649,2]
[345106392,1734021048341,-500.0,0.00024649,2]
[345106393,1734021048351,-500.0,0.00024649,2]
[345106394,1734021048361,-500.0,0.00024649,2]
[345106395,1734021048371,-522.43653461,0.00024649,2]
[345106396,1734021048382,-750.8,0.00024649,2]
[345106397,1734021048392,-500.0,0.00024649,2]
[345106398,1734021048405,-500.0,0.00024649,2]
[345106399,1734021048415,-573.99351911,0.00024649,2]
[345106400,1734021048425,-500.0,0.00024649,2]
[345106401,1734021048435,-650.98,0.00024649,2]
[345106402,1734021048445,-500.0,0.00024649,2]
[345106403,1734021048455,-631.19,0.00024649,2]
[345106404,1734021048465,-500.0,0.00024649,2]
[345106405,1734021048475,-500.0,0.00024649,2]
[345106406,1734021048485,-503.35883144,0.00024649,2]
[345106407,1734021048495,-500.0,0.00024649,2]
[345106408,1734021048505,-649.78,0.00024649,2]
[345106409,1734021048515,-500.0,0.00024649,2]
[345106410,1734021048525,-2492.42,0.00024649,2]
[345106411,1734021048535,-5000.0,0.00024649,2]
[345106412,1734021048544,-500.0,0.00024649,2]
[345106413,1734021048553,-504.30991573,0.00024649,2]
[345106414,1734021048562,-500.0,0.00024649,2]
[345106415,1734021048572,-500.0,0.00024649,2]
[345106416,1734021048581,-500.0,0.00024649,2]
[345106417,1734021048591,-500.0,0.00024649,2]
[345106418,1734021048600,-500.0,0.00024649,2]
[345106419,1734021048610,-500.0,0.00024649,2]
[345106420,1734021048618,-500.0,0.00024649,2]
[345106421,1734021048627,-500.0,0.00024649,2]
[345106422,1734021048637,-2062.1,0.00024649,2]
[345106423,1734021048647,-500.0,0.00024649,2]
[345106424,1734021048661,-514.14034008,0.00024649,2]
[345106425,1734021048671,-500.0,0.00024649,2]
[345106426,1734021048680,-500.0,0.00024649,2]
[345106427,1734021048690,-500.0,0.00024649,2]
[345106428,1734021048699,-500.0,0.00024649,2]
[345106429,1734021048709,-500.0,0.00024649,2]
[345106430,1734021048719,-500.0,0.00024649,2]
[345106431,1734021048728,-1973.88,0.00024649,2]
[345106432,1734021048738,-500.0,0.00024649,2]
[345106433,1734021048747,-500.0,0.00024649,2]
[345106434,1734021048757,-624.7,0.00024649,2]
[345106435,1734021048767,-500.0,0.00024649,2]
[345106436,1734021048777,-500.96390465,0.00024649,2]
[345106437,1734021048787,-500.0,0.00024649,2]
[345106438,1734021048796,-500.0,0.00024649,2]
[345106439,1734021048806,-500.0,0.00024649,2]
[345106440,1734021048816,-344.52492143,0.00024649,2]
[345106441,1734021048826,-500.0,0.00024649,2]
[345106442,1734021048836,-500.0,0.00024649,2]
[345106443,1734021048846,-500.0,0.00024649,2]
[345106444,1734021048856,-500.0,0.00024649,2]
[345106445,1734021048866,-500.0,0.00024649,2]
[345106446,1734021048876,-500.0,0.00024649,2]
[345106447,1734021048885,-242.6539685,0.00024649,2]
[345106448,1734021048895,-500.0,0.00024649,2]
[345106449,1734021048908,-553.86,0.00024649,2]
[345106450,1734021048918,-500.45572911,0.00024649,2]
[345106451,1734021048928,-500.0,0.00024649,2]
[345106452,1734021048937,-500.0,0.00024649,2]
[345106453,1734021048946,-500.0,0.00024649,2]
[345106454,1734021048956,-1290.74,0.00024649,2]
[345106455,1734021048966,-500.0,0.00024649,2]
[345106456,1734021048975,-500.0,0.00024649,2]
[345106457,1734021048985,-500.0,0.00024649,2]
[345106458,1734021048994,-500.0,0.00024649,2]
[345106459,1734021049004,-1281.86,0.00024649,2]
[345106460,1734021049012,-500.0,0.00024649,2]
[345106461,1734021049022,-500.0,0.00024649,2]
[345106462,1734021049031,-502.98903598,0.00024649,2]
[345106463,1734021049041,-500.0,0.00024649,2]
[345106464,1734021049051,-500.0,0.00024649,2]
[345106465,1734021049060,-500.0,0.00024649,2]
[345106466,1734021049069,-265.0,0.00024649,2]
[345106467,1734021049078,-500.0,0.00024649,2]
[345106468,1734021049088,-163.0,0.0002465,120]
[345106469,1734021049097,-150.5,0.0002465,120]
[345106470,1734021049107,-372.0,0.0002465,120]
[345106471,1734021049117,-150.5,0.0002465,120]
[345106472,1734021049127,-150.5,0.0002465,30]
[345106473,1734021049137,-150.5,0.0002465,120]
[345106474,1734021049147,-417.0,0.0002465,120]
[345106475,1734021049162,-560.0,0.0002465,30]
[345106476,1734021049174,-150.5,0.0002465,120]
[345106477,1734021049184,-417.0,0.0002465,120]
[345106478,1734021049194,-560.0,0.0002465,30]
[345106479,1734021049204,-560.0,0.0002465,30]
[345106480,1734021049214,-417.0,0.0002465,120]
[345106481,1734021049223,-560.0,0.0002465,30]
[345106482,1734021049233,-417.0,0.0002465,120]
[345106483,1734021049243,-500.0,0.00024654,2]
[345106484,1734021049253,-502.82238615,0.00024654,2]
[345106485,1734021049263,-500.0,0.00024654,2]
[345106486,1734021049273,-500.0,0.00024654,2]
[345106487,1734021049283,-501.07825624,0.00024654,2]
[345106488,1734021049293,-500.0,0.00024654,2]
[345106489,1734021049303,-500.0,0.00024654,2]
[345106490,1734021049314,-750.0,0.00024654,2]
[345106491,1734021049324,-334.74438216,0.00024654,2]
[345106492,1734021049333,-500.0,0.00024654,2]
[345106493,1734021049345,-217.29063931,0.00024654,2]
[345106494,1734021049358,-646.36,0.00024654,2]
[345106495,1734021049368,-625.17,0.00024654,2]
[345106496,1734021049378,-1306.31,0.00024654,2]
[345106497,1734021049392,-500.0,0.00024654,2]
[345106498,1734021049410,-452.04629082,0.00024654,2]
[345106499,1734021049425,-1247.24,0.00024654,2]
[345106500,1734021049439,-500.0,0.00024654,2]
[345106501,1734021049450,-649.16,0.00024654,2]
[345106502,1734021049463,-796.67,0.00024654,2]
[345106503,1734021049476,-500.0,0.00024654,2]
[345106504,1734021049488,-500.0,0.00024654,2]
[345106505,1734021049502,-380.6415912,0.00024654,2]
[345106506,1734021049515,-1083.63,0.00024654,2]
[345106507,1734021049529,-1236.73,0.00024654,2]
[345106508,1734021049543,-500.0,0.00024654,2]
[345106509,1734021049555,-1078.44,0.00024654,2]
[345106510,1734021049568,-500.0,0.00024654,2]
[345106511,1734021049579,-500.0,0.00024654,2]
[345106512,1734021049590,-500.0,0.00024654,2]
[345106513,1734021049603,-348.75002604,0.00024654,2]
[345106514,1734021049616,-600.0,0.00024654,2]
[345106515,1734021049629,-500.0,0.00024654,2]
[345106516,1734021049643,-6531.9,0.00024657,120]
[345106517,1734021049658,-987.01,0.00024657,2]
[345106518,1734021049672,-500.0,0.00024657,2]
[345106519,1734021049689,-500.0,0.00024657,2]
[345106520,1734021049702,-1075.73,0.00024657,2]
[345106521,1734021049713,-1000.0,0.00024658,2]
[345106522,1734021049727,-512.22067158,0.00024673,2]
[345106523,1734021049738,-5000.0,0.0002469,2]
[345106524,1734021049752,-300.0,0.00024699,10]
[345106525,1734021049765,-300.0,0.00024699,10]
[345106526,1734021049778,-300.0,0.00024699,10]
[345106527,1734021049790,-300.0,0.00024699,10]
[345106528,1734021049803,-300.0,0.00024699,10]
[345106529,1734021049817,-300.0,0.00024699,10]
[345106530,1734021049833,-300.0,0.00024699,10]
[345106531,1734021049847,-300.0,0.00024699,10]
[345106532,1734021049859,-200.0,0.000247,2]
[345106533,1734021049869,-500.0,0.000247,2]
[345106534,1734021049881,-1200.0,0.000247,2]
[345106535,1734021049892,-42543.20874064,0.000247,30]
[345106536,1734021049907,-7426.92,0.000247,7]
[345106537,1734021049922,-400.0,0.000247,2]
[345106538,1734021049932,-1963.05202227,0.00024724,7]
[345106539,1734021049943,-150.0,0.0002473,2]
[345106540,1734021049953,-1607.81,0.00024731,2]
[345106541,1734021049965,-5000.0,0.00024736,2]
[345106542,1734021049978,-150.0,0.00024743,2]
[345106543,1734021049993,-1500.0,0.00024748,2]
[345106544,1734021050004,-150.0,0.00024749,2]
[345106545,1734021050015,-150.0,0.00024749,2]
[345106546,1734021050025,-1500.0,0.00024752,2]
[345106547,1734021050038,-1000.0,0.00024754,2]
[345106548,1734021050049,-150.0,0.00024756,2]
[345106549,1734021050062,-150.0,0.00024765,2]
[345106550,1734021050074,-150.0,0.00024767,2]
[345106551,1734021050087,-150.0,0.0002478,2]
[345106552,1734021050099,-12500.0,0.00024782,2]
[345106553,1734021050110,-150.0,0.00024784,2]
[345106554,1734021050121,-25000.0,0.00024785,2]
[345106555,1734021050133,-1500.0,0.00024798,2]
[345106556,1734021050145,-500.0,0.00024799,2]
[345106557,1734021050160,-500.0,0.00024799,2]
[345106558,1734021050172,-500.0,0.00024799,2]
[345106559,1734021050184,-500.0,0.00024799,2]
[345106560,1734021050196,-500.0,0.00024799,2]
[345106561,1734021050208,-500.0,0.000248,2]
[345106562,1734021050220,-2183.79,0.00024803,2]
[345106563,1734021050231,-150.0,0.00024804,2]
[345106564,1734021050243,-5000.0,0.00024807,2]
[345106565,1734021050254,-150.0,0.0002481,2]
[345106566,1734021050266,-2424.98,0.00024813,2]
[345106567,1734021050277,-428.09146526,0.00024813,2]
[345106568,1734021050289,-5000.0,0.00024818,2]
[345106569,1734021050301,-1500.0,0.00024824,2]
[345106570,1734021050314,-150.0,0.00024826,2]
[345106571,1734021050326,-150.0,0.00024842,2]
[345106572,1734021050339,-150.0,0.00024844,2]
[345106573,1734021050356,-491.99,0.00024845,30]
[345106574,1734021050367,-150.0,0.00024846,2]
[345106575,1734021050378,-500.0,0.00024847,2]
[345106576,1734021050391,-500.0,0.00024847,2]
[345106577,1734021050403,-500.0,0.00024847,2]
[345106578,1734021050414,-500.0,0.00024847,2]
[345106579,1734021050426,-500.0,0.00024847,2]
[345106580,1734021050439,-438.54566665,0.00024847,2]
[345106581,1734021050450,-500.0,0.00024847,2]
[345106582,1734021050461,-500.0,0.00024847,2]
[345106583,1734021050472,-500.0,0.00024847,2]
[345106584,1734021050484,-500.0,0.00024847,2]
[345106585,1734021050494,-500.0,0.00024847,2]
[345106586,1734021050505,-500.0,0.00024847,2]
[345106587,1734021050516,-380.11036459,0.00024847,2]
[345106588,1734021050531,-500.0,0.00024847,2]
[345106589,1734021050542,-500.0,0.00024847,2]
[345106590,1734021050553,-500.0,0.00024847,2]
[345106591,1734021050564,-500.0,0.00024847,2]
[345106592,1734021050575,-500.0,0.00024847,2]
[345106593,1734021050586,-588.28607274,0.00024847,2]
[345106594,1734021050598,-500.0,0.00024847,2]
[345106595,1734021050608,-500.0,0.00024847,2]
[345106596,1734021050620,-500.0,0.00024847,2]
[345106597,1734021050633,-400.70342027,0.00024847,2]
[345106598,1734021050645,-500.0,0.00024847,2]
[345106599,1734021050658,-500.0,0.00024847,2]
[345106600,1734021050670,-500.0,0.00024847,2]
[345106601,1734021050680,-500.0,0.00024847,2]
[345106602,1734021050691,-741.15,0.00024847,2]
[345106603,1734021050701,-500.0,0.00024847,2]
[345106604,1734021050712,-500.0,0.00024847,2]
[345106605,1734021050724,-826.77,0.00024847,2]
[345106606,1734021050735,-500.0,0.00024847,2]
[345106607,1734021050745,-702.94,0.00024847,2]
[345106608,1734021050757,-500.0,0.00024847,2]
[345106609,1734021050767,-150.0,0.00024849,2]
[345106610,1734021050779,-150.0,0.00024857,2]
[345106611,1734021050789,-150.0,0.00024863,2]
[345106612,1734021050800,-150.0,0.00024863,2]
[345106613,1734021050811,-150.0,0.00024865,2]
[345106614,1734021050822,-1500.0,0.00024866,2]
[345106615,1734021050833,-150.0,0.00024876,2]
[345106616,1734021050844,-150.0,0.00024883,2]
[345106617,1734021050854,-161.23184659,0.00024884,2]
[345106618,1734021050865,-150.0,0.00024884,2]
[345106619,1734021050876,-5000.0,0.00024886,2]